bitfinex-derivatives/quotes_ETHF0:USTF0_20260209
["timestamp","ask_amount","ask_price","bid_price","bid_amount"]
[1770650848895,5.68124522,2035.3,2034.6,6.97647718]
[1770650849498,4.30025847,2035.2,2034.3,6.73058718]
[1770650849699,5.68124522,2035.3,2034.5,6.73058718]
[1770650849997,5.67052541,2035.5,2034.7,6.73058718]
[1770650850200,5.67052541,2035.7,2034.9,6.73058718]
[1770650850391,2.91994398,2035.8,2035.3,6.73058718]
[1770650850392,0.00509702,2035.8,2035.3,6.73058718]
[1770650850699,8.56578469,2036.3,2035.5,6.73058718]
[1770650850893,4.30415561,2036.2,2035.5,6.73058718]
[1770650851095,2.91484696,2036.3,2035.7,6.73058718]
[1770650851295,6.44523821,2036.5,2035.6,6.73058718]
[1770650851495,6.44523821,2036.4,2035.0,6.73058718]
[1770650851696,6.44523821,2036.0,2035.1,6.73058718]
[1770650851905,6.44523821,2035.9,2034.8,6.73058718]
[1770650852400,6.44523821,2035.9,2035.0,6.73058718]
[1770650852600,6.44523821,2035.9,2035.0,6.73569581]
[1770650853194,6.44523821,2035.9,2035.0,0.00510863]
[1770650853798,6.44523821,2035.8,2035.0,0.00510863]
[1770650854599,6.44523821,2035.8,2035.0,6.73569581]
[1770650855204,6.44523821,2035.8,2035.0,0.00510863]
[1770650855903,6.44523821,2035.8,2034.4,0.24592]
[1770650855904,6.44523821,2035.7,2034.5,6.73058718]
[1770650856098,9.36008517,2035.8,2034.7,6.73058718]
[1770650856303,6.44523821,2035.8,2034.9,6.73058718]
[1770650857009,6.44523821,2035.8,2034.9,6.73528266]
[1770650857303,6.44523821,2036.0,2035.1,6.73058718]
[1770650859107,6.44523821,2036.0,2034.9,0.00469548]
[1770650859310,6.44523821,2035.8,2034.9,6.73528266]
[1770650861699,6.44523821,2035.7,2034.9,0.00469548]
[1770650862311,6.44523821,2035.6,2034.9,0.00469548]
[1770650862511,6.44523821,2035.6,2033.9,6.73058718]
[1770650862512,6.44523821,2035.4,2033.9,6.73058718]
[1770650862807,6.44523821,2034.9,2033.6,6.73058718]
[1770650863112,6.44523821,2034.8,2033.6,6.73058718]
[1770650863410,6.44523821,2034.6,2033.6,6.73058718]
[1770650863607,6.44523821,2034.6,2033.6,6.73517357]
[1770650864613,2.91941239,2034.8,2033.7,0.246]
[1770650864908,6.44980364,2034.8,2034.0,6.73058718]
[1770650865104,6.44980364,2034.8,2033.8,6.73058718]
[1770650866209,0.00456543,2034.8,2033.8,6.97656718]
[1770650866409,6.47722262,2034.8,2033.8,6.97656718]
[1770650869715,1e-08,2034.8,2034.3,6.75438725]
[1770650870212,1e-08,2034.8,2034.2,7.00032725]
[1770650875015,6.47265719,2035.6,2034.9,6.75438725]
[1770650875317,9.38750415,2035.8,2034.9,6.75438725]
[1770650875519,4.24196231,2035.7,2035.1,6.75438725]
[1770650875714,9.38750415,2036.0,2035.3,6.75438725]
[1770650875916,6.47265719,2036.0,2035.3,6.75438725]
[1770650876114,0.00615733,2036.0,2035.3,6.75815594]
[1770650876915,0.00615733,2036.0,2035.5,6.75438725]
[1770650877718,6.47881452,2036.0,2035.4,0.2458]
[1770650878211,6.47881452,2036.0,2035.3,6.75815594]
[1770650878520,6.47881452,2036.0,2035.3,0.00376869]
[1770650879112,6.47881452,2036.0,2035.3,6.75815594]
[1770650879820,0.00615733,2036.0,2035.3,6.75815594]
[1770650880021,0.00615733,2036.0,2035.3,7.00396594]
[1770650880421,6.47881452,2036.0,2035.3,7.00396594]
[1770650880622,6.47881452,2036.0,2035.3,6.75815594]
[1770650880826,0.00615733,2036.0,2035.5,6.75438725]
[1770650881522,6.47881452,2036.0,2035.5,6.75438725]
[1770650881720,0.00615733,2036.0,2035.5,6.75438725]
[1770650882116,6.47881452,2036.0,2035.5,6.75438725]
[1770650882316,0.00615733,2036.0,2035.5,6.75438725]
[1770650882527,2.91557352,2036.5,2035.3,0.00376869]
[1770650882528,2.91557352,2036.5,2035.7,6.75438725]
[1770650882720,2.91557352,2036.5,2035.6,0.24578]
[1770650882721,6.47265719,2036.6,2035.9,6.75438725]
[1770650883127,9.38823071,2036.8,2036.1,6.75438725]
[1770650883328,10.68998347,2036.7,2036.1,6.75438725]
[1770650883625,6.47621787,2036.7,2036.1,6.75438725]
[1770650884324,6.47621787,2036.7,2035.6,6.75438725]
[1770650886937,6.47621787,2036.7,2035.8,6.75438725]
[1770650888934,6.47621787,2036.7,2036.0,6.75438725]
[1770650889133,5.8126672,2037.2,2036.0,6.75438725]
[1770650889134,6.47265719,2037.2,2036.3,7.00007725]
[1770650889324,6.47265719,2037.4,2036.5,0.24567]
[1770650889629,6.47265719,2037.8,2036.8,6.75438725]
[1770650889828,6.47265719,2037.8,2037.2,6.75438725]
[1770650890026,6.47686576,2037.8,2037.2,6.76001818]
[1770650890230,6.47265719,2038.1,2037.2,6.76001818]
[1770650890423,6.47265719,2038.1,2037.4,6.75438725]
[1770650890625,6.47265719,2038.4,2037.6,6.75438725]
[1770650891125,0.00444521,2038.4,2037.8,6.75438725]
[1770650891631,6.4771024,2038.4,2037.7,0.24552]
[1770650891927,6.4771024,2038.4,2037.5,6.75438725]
[1770650892724,0.00444521,2038.4,2037.7,6.75438725]
[1770650893328,0.00444521,2038.4,2037.9,6.75438725]
[1770650893524,6.47265719,2038.9,2038.1,6.75438725]
[1770650894120,6.47265719,2039.2,2038.3,6.75438725]
[1770650894526,6.47265719,2039.2,2038.1,6.99984725]
[1770650894831,6.47821688,2039.2,2038.1,6.75438725]
[1770650895231,6.47821688,2039.2,2037.9,6.75438725]
[1770650895232,6.47265719,2038.9,2037.9,6.75438725]
[1770650895527,6.47265719,2038.9,2037.7,6.31356359]
[1770650896634,6.27000673,2038.6,2037.7,6.31356359]
[1770650896934,6.27000673,2039.1,2037.7,6.31356359]
[1770650897336,6.27000673,2039.1,2037.9,6.31356359]
[1770650898432,6.27000673,2039.1,2038.1,6.31356359]
[1770650898736,6.13857231,2038.9,2037.9,21.51584053]
[1770650898931,6.13857231,2038.9,2038.0,6.52484053]
[1770650899333,6.13857231,2039.1,2038.2,6.52484053]
[1770650899532,2.89709368,2039.0,2037.9,21.51584053]
[1770650899728,2.89709368,2038.7,2037.7,6.52484053]
[1770650899929,0.00555969,2039.2,2037.9,6.52484053]
[1770650899930,6.13857231,2039.1,2037.9,6.52484053]
[1770650900434,6.13857231,2039.1,2038.1,6.52484053]
[1770650900634,0.00555969,2039.2,2038.1,6.52484053]
[1770650901133,6.13857231,2040.1,2039.0,6.52484053]
[1770650901331,2.89709368,2039.8,2038.5,6.52484053]
[1770650901638,6.13857231,2039.9,2038.7,6.52484053]
[1770650902137,6.13857231,2039.9,2038.7,6.52928675]
[1770650902138,6.14257684,2039.9,2038.7,6.52928675]
[1770650903538,6.14257684,2039.9,2038.8,6.52484053]
[1770650905239,2.89709368,2039.7,2038.8,6.52484053]
[1770650905541,6.13857231,2039.3,2038.7,25.00444622]
[1770650905942,6.13857231,2039.5,2038.8,6.52484053]
[1770650906735,6.13857231,2039.8,2038.8,6.52484053]
[1770650907238,2.89709368,2039.7,2038.7,25.00444622]
[1770650907441,6.13857231,2039.6,2038.7,25.00444622]
[1770650907940,6.13857231,2039.6,2038.7,31.52928675]
[1770650908637,6.13857231,2039.3,2038.7,25.00444622]
[1770650908839,1.71862447,2039.5,2038.8,6.52484053]
[1770650909235,1.71862447,2039.5,2038.7,15.55126952]
[1770650909536,1.99271646,2039.4,2038.7,15.55126952]
[1770650909741,2.23803646,2039.4,2038.7,15.55126952]
[1770650909943,2.23803646,2039.4,2038.7,12.90867027]
[1770650910446,3.14246368,2039.0,2038.0,6.84330312]
[1770650910646,0.10501356,2038.9,2038.1,19.20093339]
[1770650910941,0.10501356,2038.9,2038.1,6.84330312]
[1770650911444,2.06523577,2038.7,2038.1,0.00446267]
[1770650911644,2.06523577,2038.7,2038.1,12.36209294]
[1770650912246,2.06523577,2038.7,2038.1,18.88693347]
[1770650912650,2.96474073,2039.2,2038.2,6.52484053]
[1770650913245,3.23331591,2039.0,2038.2,6.52484053]
[1770650913446,3.23331591,2038.9,2038.1,0.00446267]
[1770650913644,2.89709368,2038.4,2037.6,6.52484053]
[1770650913846,3.20288305,2038.3,2037.2,6.52484053]
[1770650914045,3.20102114,2038.6,2037.4,6.52484053]
[1770650914441,3.20102114,2038.3,2037.5,12.35763027]
[1770650914642,3.20496296,2038.3,2037.5,0.00415966]
[1770650914844,3.20496296,2038.3,2037.7,6.52484053]
[1770650915044,0.00394182,2038.3,2037.7,6.52484053]
[1770650915245,0.00394182,2038.3,2037.9,6.52484053]
[1770650915838,0.00394182,2038.3,2038.0,12.35763027]
[1770650916148,3.2733556,2038.7,2038.1,6.52484053]
[1770650916350,7.48077583,2038.6,2037.7,6.52484053]
[1770650916649,3.2733556,2038.6,2037.8,6.52484053]
[1770650916952,3.27716768,2038.6,2037.8,6.52484053]
[1770650917143,3.2947537,2038.4,2037.9,12.35763027]
[1770650917345,3.2947537,2038.4,2037.7,6.52484053]
[1770650917543,3.2947537,2038.4,2037.6,12.35763027]
[1770650917748,3.2947537,2038.4,2037.6,18.8824708]
[1770650918147,7.49679738,2038.3,2037.6,18.8824708]
[1770650918350,3.27421832,2038.3,2037.6,18.8824708]
[1770650918751,3.25522491,2038.1,2037.6,12.35763027]
[1770650919153,3.25522491,2038.1,2037.6,18.8824708]
[1770650919452,3.27042132,2037.9,2037.5,0.00415966]
[1770650919649,7.47860117,2037.8,2037.2,6.52484053]
[1770650919848,4.25140804,2037.6,2037.0,6.52484053]
[1770650920254,45.0498196,2037.8,2037.0,6.52484053]
[1770650920451,4.2258114,2037.7,2037.1,10.23087952]
[1770650920649,4.44956738,2037.5,2037.1,10.23506018]
[1770650920851,4.44956738,2037.7,2037.1,16.75990071]
[1770650921153,43.71557352,2037.8,2037.1,16.75990071]
[1770650921154,8.75619344,2037.6,2037.1,16.75990071]
[1770650921355,4.53082902,2037.6,2037.1,16.75990071]
[1770650922052,4.50513083,2037.4,2036.5,6.52484053]
[1770650922255,4.22437171,2037.3,2036.8,6.52484053]
[1770650922557,4.50513083,2037.4,2036.8,6.52484053]
[1770650922758,4.48563007,2037.2,2036.6,6.52484053]
[1770650923053,4.21954718,2037.1,2036.6,6.53019569]
[1770650923256,0.00350588,2037.1,2036.7,6.52484053]
[1770650923651,4.4942257,2037.1,2036.6,0.00535516]
[1770650923851,0.00350588,2037.1,2036.7,6.52484053]
[1770650924252,0.00350588,2037.1,2036.9,6.52484053]
[1770650924461,0.00350588,2037.1,2036.8,16.75572005]
[1770650924759,4.45284674,2037.1,2036.6,6.53019569]
[1770650924963,4.45284674,2037.1,2036.7,10.23087952]
[1770650925460,4.45284674,2037.1,2036.6,0.00535516]
[1770650925662,4.45284674,2037.1,2036.7,10.23087952]
[1770650925957,4.45284674,2037.1,2036.7,5.76304534]
[1770650926162,4.45284674,2037.1,2036.6,7.31822647]
[1770650926458,0.00350588,2037.1,2036.7,7.31287131]
[1770650927257,2.89709368,2037.0,2036.0,7.27796422]
[1770650927565,2.89709368,2036.7,2035.3,7.45051285]
[1770650927861,31.743,2036.7,2035.4,7.45051285]
[1770650928061,40.8,2036.6,2035.4,7.45051285]
[1770650928264,40.8,2036.6,2035.4,7.45681658]
[1770650928457,40.8,2036.6,2035.6,7.45150066]
[1770650928657,0.01574599,2036.5,2035.6,7.45150066]
[1770650928850,0.01574599,2036.5,2035.7,12.35670391]
[1770650929054,0.01574599,2036.5,2035.7,7.45150066]
[1770650929253,0.01574599,2036.5,2035.8,12.67935271]
[1770650929461,0.01574599,2036.5,2035.8,7.77414946]
[1770650929655,0.01574599,2036.5,2035.8,12.67935271]
[1770650929862,0.01574599,2036.5,2035.9,7.77414946]
[1770650930563,0.01574599,2036.5,2035.8,4.90520325]
[1770650930861,0.01574599,2036.5,2035.8,12.67988202]
[1770650931063,0.01574599,2036.5,2035.9,7.76954136]
[1770650931563,40.8,2036.6,2035.9,7.76954136]
[1770650932663,0.24567,2036.5,2035.5,7.77003079]
[1770650932860,2.89709368,2036.4,2035.5,12.67523404]
[1770650933761,2.89709368,2036.1,2035.4,0.00630373]
[1770650933962,31.754,2036.0,2035.4,0.00630373]
[1770650934161,31.754,2036.0,2035.4,7.81040342]
[1770650934664,31.754,2036.0,2035.4,0.00630373]
[1770650934864,31.754,2036.0,2035.4,4.91150698]
[1770650935469,0.24569,2036.3,2035.5,12.74279488]
[1770650935665,72.558,2036.6,2035.5,12.74279488]
[1770650936071,72.558,2036.6,2035.6,7.83799336]
[1770650936765,72.558,2036.6,2035.7,4.90520325]
[1770650936968,72.558,2036.6,2035.8,7.83799336]
[1770650937272,31.758,2036.6,2035.8,7.83799336]
[1770650937474,31.758,2036.6,2036.0,7.80138551]
[1770650937674,72.558,2036.6,2036.0,7.80138551]
[1770650937972,72.558,2036.6,2036.1,4.90520325]
[1770650938466,72.558,2036.6,2036.1,4.38864325]
[1770650938671,72.558,2036.6,2035.8,7.80183704]
[1770650938971,72.558,2036.6,2035.4,0.00630373]
[1770650938972,31.758,2036.6,2036.0,7.80183704]
[1770650939475,40.8,2036.5,2036.2,7.83939801]
[1770650940170,31.758,2036.6,2036.2,12.22804126]
[1770650940571,72.558,2036.6,2036.2,12.22804126]
[1770650940765,2.89709368,2036.3,2035.4,0.00630373]
[1770650940968,2.89709368,2035.5,2034.6,7.58857013]
[1770650941170,31.762,2035.4,2034.6,7.58857013]
[1770650941772,2.89709368,2035.5,2034.6,7.58857013]
[1770650941966,0.00354124,2035.4,2034.6,7.59421258]
[1770650945675,2.89709368,2035.2,2034.6,2.45e-06]
[1770650945871,4.23680312,2035.3,2034.6,2.45e-06]
[1770650945872,2.89709368,2034.9,2034.6,2.45e-06]
[1770650946066,40.8,2034.8,2034.6,2.45e-06]
[1770650946272,40.8,2034.8,2034.0,7.85768529]
[1770650947272,40.8,2034.8,2034.0,7.86195174]
[1770650947775,31.769,2035.1,2034.0,7.86195174]
[1770650948280,0.00354124,2035.4,2034.2,7.70820638]
[1770650948973,2.91557352,2036.1,2034.6,7.6806701]
[1770650949270,4.23627905,2036.0,2034.6,7.6806701]
[1770650949480,31.775,2036.2,2034.6,7.6806701]
[1770650949676,4.24026883,2036.1,2034.6,7.6806701]
[1770650949876,4.24058358,2036.0,2034.8,7.67889948]
[1770650950177,0.00434185,2036.0,2034.8,7.67889948]
[1770650950577,4.24342135,2035.9,2034.8,7.67889948]
[1770650950879,0.00434185,2036.0,2034.8,7.67889948]
[1770650951074,2.91991537,2036.0,2034.8,7.67889948]
[1770650951270,4.24344042,2035.9,2034.8,7.67889948]
[1770650951876,7.15901394,2035.9,2034.8,7.67889948]
[1770650952076,4.24344042,2035.8,2034.8,7.67889948]
[1770650952380,4.24344042,2035.7,2034.8,7.67889948]
[1770650952577,7.15901394,2035.7,2034.8,7.67889948]
[1770650952778,4.24344042,2035.6,2034.8,7.67889948]
[1770650954079,3.16133352,2035.7,2034.8,7.67889948]
[1770650954378,2.91557352,2035.4,2034.3,7.73741561]
[1770650954571,4.25018547,2035.3,2034.3,7.73741561]
[1770650954777,2.91557352,2035.2,2034.3,7.73741561]
[1770650954973,45.05018547,2035.1,2034.3,7.73741561]
[1770650955174,4.25018547,2035.0,2034.3,7.73741561]
[1770650955375,40.8,2035.1,2034.3,7.73741561]
[1770650955675,4.25134521,2035.0,2034.3,7.73741561]
[1770650955876,43.71557352,2035.1,2034.3,7.73741561]
[1770650956078,4.25049385,2035.0,2034.3,7.73741561]
[1770650956274,43.28128565,2035.2,2034.3,7.73741561]
[1770650956275,2.91557352,2035.2,2034.3,7.73741561]
[1770650956579,43.28128565,2035.3,2034.3,7.73741561]
[1770650956580,4.25239733,2035.1,2034.3,7.73741561]
[1770650956874,2.91557352,2035.4,2034.5,7.74162886]
[1770650957081,2.91557352,2035.6,2034.5,7.74162886]
[1770650957277,2.91557352,2035.9,2034.9,6.78268781]
[1770650957580,6.41409029,2035.9,2034.9,6.78268781]
[1770650957980,2.91557352,2035.9,2034.9,6.78268781]
[1770650958386,2.91991537,2036.0,2034.9,6.78268781]
[1770650959281,6.67599037,2036.0,2034.9,6.78268781]
[1770650959584,3.756075,2035.7,2034.9,6.78268781]
[1770650959879,2.91557352,2035.8,2034.9,6.78268781]
[1770650960076,3.16131352,2035.9,2034.9,6.78268781]
[1770650960271,2.91557352,2035.8,2034.9,6.78268781]
[1770650960475,2.91557352,2035.9,2034.9,6.78268781]
[1770650961376,2.91991537,2036.0,2034.9,6.78268781]
[1770650961576,0.00434185,2036.0,2034.9,6.78268781]
[1770650963177,0.00434185,2036.0,2035.1,7.04720517]
[1770650964177,2.91557352,2036.4,2035.1,7.04720517]
[1770650964380,6.66442047,2036.5,2035.1,7.04720517]
[1770650964578,6.66442047,2036.5,2035.3,7.04720517]
[1770650964885,40.8,2036.4,2035.3,7.04720517]
[1770650965074,40.8,2036.4,2035.2,0.24582]
[1770650965075,2.91557352,2036.6,2035.6,0.24578]
[1770650965279,0.0055187,2036.6,2035.7,7.04720517]
[1770650965879,2.91557352,2037.2,2035.9,7.04720517]
[1770650966181,35.51947728,2037.3,2036.1,7.04720517]
[1770650966382,40.8,2037.2,2036.1,7.04720517]
[1770650966774,40.80348007,2037.2,2036.1,7.04720517]
[1770650967177,3.78557023,2037.1,2036.1,7.04720517]
[1770650967377,40.80348007,2037.2,2036.1,7.04720517]
[1770650967783,0.00348007,2037.2,2036.3,7.04720517]
[1770650967979,0.00348007,2037.2,2036.5,7.04720517]
[1770650968180,3.76615916,2037.9,2036.5,7.04720517]
[1770650968376,3.76615916,2037.6,2035.9,7.04720517]
[1770650968678,6.79478195,2037.4,2035.9,7.04720517]
[1770650968978,6.79478195,2037.7,2036.5,7.04720517]
[1770650969180,6.79917414,2037.7,2036.5,7.04720517]
[1770650969387,6.79478195,2037.5,2036.1,7.04720517]
[1770650970986,6.79478195,2037.5,2036.3,7.04720517]
[1770650971480,6.79478195,2037.5,2036.5,7.04720517]
[1770650971687,6.79917414,2037.7,2036.5,7.04720517]
[1770650972785,6.79917414,2037.7,2036.7,7.04720517]
[1770650972994,0.00439219,2037.7,2036.7,7.04720517]
[1770650974178,6.79917414,2037.7,2036.7,7.04720517]
[1770650976888,6.79917414,2037.7,2036.5,7.04720517]
[1770650978598,6.79917414,2037.7,2036.7,7.04720517]
[1770650978894,6.79478195,2038.1,2037.1,7.04720517]
[1770650979290,6.79478195,2038.0,2037.1,7.04720517]
[1770650979890,6.80041978,2038.0,2037.1,7.05309512]
[1770650983997,6.79478195,2037.8,2037.1,7.05309512]
[1770650986301,7.43380929,2038.0,2037.1,7.05309512]
[1770650986502,0.00563783,2038.0,2037.1,7.05309512]
[1770650986702,7.43380929,2038.0,2037.1,7.05309512]
[1770650987497,0.00563783,2038.0,2037.1,7.05309512]
[1770650988896,7.43380929,2038.0,2037.1,7.05309512]
[1770650989605,0.00563783,2038.0,2037.1,7.05309512]
[1770650991700,7.42817146,2038.3,2037.3,7.21807425]
[1770650992802,7.4332737,2038.3,2037.3,7.21807425]
[1770650993197,7.42817146,2038.2,2037.3,7.21807425]
[1770650995006,0.00510224,2038.3,2037.5,7.21807425]
[1770650995504,43.71557352,2038.5,2037.7,7.21807425]
[1770650995705,2.91557352,2038.5,2037.7,7.21807425]
[1770650996113,2.91557352,2038.4,2037.7,7.21807425]
[1770650996707,0.00589336,2038.4,2037.7,7.21807425]
[1770650997011,7.43406482,2038.4,2037.7,7.21807425]
[1770650997700,7.43406482,2038.4,2037.6,7.21807425]
[1770650997899,7.42817146,2038.2,2037.6,7.21807425]
[1770650998104,7.42817146,2038.0,2037.1,0.00588995]
[1770650998301,10.34374498,2037.8,2036.9,7.21807425]
[1770650998508,7.42817146,2037.7,2036.9,7.21807425]
[1770650999300,7.42817146,2037.7,2036.9,7.22248583]
[1770650999908,7.42817146,2037.6,2036.9,7.22248583]
[1770651000608,10.34374498,2037.6,2036.9,7.22248583]
[1770651000802,43.28128565,2037.8,2036.9,7.22248583]
[1770651001006,7.42817146,2038.2,2037.1,7.21807425]
[1770651001409,0.00589336,2038.4,2037.5,7.21807425]
[1770651001914,7.42817146,2038.8,2037.7,7.21807425]
[1770651002706,7.42817146,2039.1,2037.8,0.24551]
[1770651002912,0.00389974,2039.1,2038.1,7.21807425]
[1770651003113,0.00389974,2039.1,2038.3,7.21807425]
[1770651003612,7.42817146,2039.7,2038.5,7.21807425]
[1770651003917,7.42817146,2040.0,2038.7,7.21807425]
[1770651004214,7.42817146,2040.0,2038.6,0.24541]
[1770651004215,7.42817146,2040.2,2038.9,7.21807425]
[1770651004413,7.42817146,2040.2,2039.1,7.21807425]
[1770651004713,7.43204737,2040.2,2039.1,7.22277994]
[1770651008917,7.42817146,2040.1,2039.1,7.22277994]
[1770651009319,7.42817146,2040.6,2039.5,7.21807425]
[1770651009511,7.42817146,2040.6,2039.4,6.03489]
[1770651009512,6.45307299,2041.0,2040.1,7.21807425]
[1770651009819,7.42817146,2040.7,2039.5,7.21807425]
[1770651010323,7.43369621,2040.7,2039.5,7.21807425]
[1770651010813,7.43369621,2040.7,2039.2,0.24533]
[1770651010814,0.00552475,2040.7,2039.9,7.21807425]
[1770651011423,0.00552475,2040.7,2040.1,7.21807425]
[1770651011618,40.8,2041.3,2040.1,7.21807425]
[1770651011619,7.42817146,2041.3,2040.1,7.21807425]
[1770651012423,40.8,2041.4,2040.3,7.21807425]
[1770651012717,0.00382162,2041.4,2040.3,7.21807425]
[1770651012922,0.00382162,2041.4,2040.5,7.21807425]
[1770651013322,7.43199308,2041.4,2040.5,7.21807425]
[1770651014129,0.24498,2042.2,2039.5,2.88767976]
[1770651014130,7.42817146,2042.7,2041.4,7.21807425]
[1770651014628,7.42817146,2042.1,2041.2,7.21807425]
[1770651015018,7.4325153,2042.1,2041.2,7.2242095]
[1770651015214,0.00434384,2042.1,2041.2,7.2242095]
[1770651015415,9.9465784,2042.5,2041.4,6.97216008]
[1770651015619,7.05889864,2042.4,2041.4,6.97216008]
[1770651016328,7.06444756,2042.4,2041.4,6.97216008]
[1770651016720,2.88767976,2041.7,2040.9,6.97216008]
[1770651016920,9.9465784,2042.0,2040.9,6.97216008]
[1770651017122,7.05889864,2042.2,2041.1,6.97216008]
[1770651017426,0.00554892,2042.4,2041.5,6.97216008]
[1770651017623,7.05889864,2043.7,2042.7,6.97216008]
[1770651017823,7.05889864,2043.7,2042.9,6.97216008]
[1770651018132,7.05889864,2044.4,2043.1,6.97216008]
[1770651018422,7.05889864,2044.2,2043.1,6.97216008]
[1770651018726,7.05889864,2044.1,2043.1,6.97777927]
[1770651019322,0.0043593,2044.2,2043.1,6.97777927]
[1770651019526,6.8122145,2044.2,2043.1,6.97777927]
[1770651019822,6.8078552,2043.9,2043.1,0.00561919]
[1770651020417,6.8078552,2043.3,2042.5,7.05421867]
[1770651020622,6.8078552,2043.3,2042.1,7.05421867]
[1770651021325,6.8078552,2043.3,2042.1,7.05766084]
[1770651021530,6.8078552,2043.3,2042.1,0.00344217]
[1770651022330,6.8078552,2043.1,2042.1,0.00344217]
[1770651022635,6.8078552,2042.9,2041.6,7.05421867]
[1770651023430,6.8078552,2042.5,2041.3,7.05421867]
[1770651023633,6.81367602,2042.5,2041.6,0.00573389]
[1770651024437,6.81367602,2042.5,2041.6,7.05995256]
[1770651025133,6.8078552,2042.3,2041.6,0.00573389]
[1770651025832,6.8078552,2042.3,2041.6,7.05995256]
[1770651026033,6.8078552,2042.3,2041.6,0.00573389]
[1770651027135,6.8078552,2042.3,2041.6,7.05995256]
[1770651027335,6.81367602,2042.5,2041.6,7.05995256]
[1770651027741,6.8078552,2042.4,2041.6,7.05995256]
[1770651028135,6.8078552,2042.4,2041.6,0.00573389]
[1770651028539,7.0528152,2042.4,2041.1,7.05421867]
[1770651029340,6.8078552,2041.9,2040.7,7.05421867]
[1770651029540,6.8078552,2041.9,2040.7,7.05771932]
[1770651031640,6.8078552,2041.7,2040.7,7.05771932]
[1770651032538,6.8078552,2041.7,2040.7,0.00350065]
[1770651032746,4.08317501,2041.8,2040.4,7.05421867]
[1770651032747,6.8078552,2041.5,2040.4,7.05421867]
[1770651033139,6.8078552,2041.3,2040.4,7.05421867]
[1770651033445,6.8078552,2041.1,2040.4,7.05421867]
[1770651033739,6.8078552,2041.1,2040.4,7.06034239]
[1770651034047,6.8078552,2041.1,2040.4,0.00612372]
[1770651034847,6.8078552,2040.9,2039.8,7.05421867]
[1770651035346,6.8078552,2040.9,2039.6,7.05421867]
[1770651035747,6.8078552,2040.7,2039.6,0.00605593]
[1770651035945,6.8078552,2040.7,2039.6,7.0602746]
[1770651038550,0.00387608,2040.9,2040.1,7.05421867]
[1770651038753,6.8078552,2041.3,2040.3,7.05421867]
[1770651039149,6.8078552,2041.7,2040.3,7.05421867]
[1770651039345,6.8078552,2041.7,2040.5,7.05421867]
[1770651039547,6.8078552,2042.3,2040.9,7.05421867]
[1770651039752,6.81248209,2042.3,2040.9,7.05421867]
[1770651040151,47.6078552,2042.2,2041.0,0.24513]
[1770651040345,6.8078552,2042.2,2041.1,7.05421867]
[1770651040543,6.8078552,2042.2,2041.1,7.05989847]
[1770651041347,6.8078552,2042.0,2041.1,0.0056798]
[1770651042545,38.4948552,2042.0,2041.1,0.0056798]
[1770651042748,6.8078552,2041.9,2041.1,0.0056798]
[1770651043652,6.8078552,2041.9,2041.1,7.05989847]
[1770651045244,40.80462689,2042.3,2041.1,7.05989847]
[1770651045451,6.50553288,2042.1,2041.1,7.05989847]
[1770651046054,6.50553288,2042.0,2041.1,7.05989847]
[1770651046254,6.50553288,2041.4,2040.6,6.55441735]
[1770651047147,6.50553288,2041.4,2040.6,6.55992152]
[1770651047552,0.24502,2041.9,2040.6,6.55992152]
[1770651047553,6.50553288,2041.6,2040.6,6.55992152]
[1770651049354,0.24502,2041.9,2040.6,6.55992152]
[1770651049557,43.28591254,2042.3,2040.9,6.55441735]
[1770651049756,6.51015977,2042.3,2040.9,6.55441735]
[1770651049957,6.50553288,2042.2,2040.9,6.55441735]
[1770651050156,6.50553288,2042.0,2040.9,6.55441735]
[1770651050657,6.50553288,2042.2,2041.1,6.55441735]
[1770651051849,0.00462689,2042.3,2041.1,6.55441735]
[1770651052049,6.51015977,2042.3,2041.1,6.55441735]
[1770651053067,0.00462689,2042.3,2041.1,6.55441735]
[1770651053266,6.51015977,2042.3,2041.1,6.55441735]
[1770651053762,6.51015977,2042.3,2041.3,6.55441735]
[1770651055656,6.51015977,2042.3,2041.5,6.55441735]
[1770651057367,0.00462689,2042.3,2041.5,6.55441735]
[1770651057570,6.51015977,2042.3,2041.5,6.55441735]
[1770651058073,6.50553288,2042.2,2041.0,6.55441735]
[1770651058367,6.50553288,2042.2,2041.1,0.24511]
[1770651058666,6.50553288,2042.2,2041.2,6.55441735]
[1770651060166,6.50553288,2042.2,2041.4,6.55441735]
[1770651060374,6.50553288,2042.2,2040.9,6.55441735]
[1770651060872,6.50553288,2042.2,2041.1,6.55441735]
[1770651061673,6.50553288,2042.2,2041.3,6.55441735]
[1770651062072,6.50553288,2042.2,2041.4,6.79949735]
[1770651062572,2.91518308,2042.9,2041.9,6.79943735]
[1770651062882,6.50553288,2043.0,2041.9,6.79943735]
[1770651063171,6.50553288,2043.2,2042.4,6.55441735]
[1770651063372,6.50553288,2043.2,2042.3,0.24496]
[1770651063571,6.50553288,2043.1,2042.3,6.80363796]
[1770651063770,0.00544872,2043.2,2042.3,6.80363796]
[1770651063972,6.5109816,2043.2,2042.3,6.80363796]
[1770651064673,0.00544872,2043.2,2042.3,6.80363796]
[1770651064866,0.00432732,2043.2,2042.3,6.80363796]
[1770651065063,6.50553288,2042.7,2042.0,6.55441735]
[1770651065371,6.50553288,2043.0,2042.1,6.79940735]
[1770651066168,6.5098602,2043.2,2042.1,6.80463471]
[1770651066369,0.00432732,2043.2,2042.1,7.09725516]
[1770651066561,0.00432732,2043.2,2042.3,6.79938735]
[1770651066772,6.5098602,2043.2,2042.3,6.79938735]
[1770651067470,0.00432732,2043.2,2042.3,6.79938735]
[1770651067667,6.5098602,2043.2,2042.3,6.79938735]
[1770651068070,0.00432732,2043.2,2042.5,6.55441735]
[1770651068276,0.00432732,2043.2,2042.7,6.55441735]
[1770651069073,6.50553288,2043.9,2042.9,6.55441735]
[1770651069571,9.42071596,2044.6,2043.7,6.55441735]
[1770651069773,6.50553288,2044.6,2043.8,6.55441735]
[1770651069970,6.50999444,2044.6,2043.8,6.55932701]
[1770651070376,0.00446156,2044.6,2043.8,6.55932701]
[1770651070575,6.50553288,2045.0,2044.0,6.55441735]
[1770651070771,47.30553288,2045.3,2044.2,6.55441735]
[1770651070971,6.50553288,2045.7,2044.4,6.55441735]
[1770651071178,6.50553288,2045.5,2044.2,6.55441735]
[1770651071377,6.50553288,2045.3,2044.2,6.55441735]
[1770651071577,6.51080374,2045.3,2044.2,6.55441735]
[1770651071879,6.50553288,2045.0,2043.8,6.55932701]
[1770651072080,6.50553288,2045.0,2043.8,0.00490966]
[1770651072578,6.50553288,2044.8,2043.8,0.00490966]
[1770651072979,6.50553288,2044.8,2043.6,6.55441735]
[1770651073178,6.50553288,2044.8,2043.3,6.55441735]
[1770651073574,6.50553288,2044.8,2043.5,6.55441735]
[1770651073977,6.50553288,2044.8,2043.5,6.56027397]
[1770651077576,6.63473704,2044.6,2043.5,0.00585662]
[1770651078077,6.63473704,2044.6,2043.5,6.72630566]
[1770651079576,6.33928193,2045.2,2043.7,6.22140932]
[1770651079772,6.33928193,2045.2,2044.1,6.22140932]
[1770651081275,6.33928193,2045.2,2043.6,6.22140932]
[1770651081680,6.33928193,2045.0,2043.6,6.22140932]